bitfinex-derivatives/quotes_SOLF0:USTF0_20251108
["timestamp","ask_amount","ask_price","bid_price","bid_amount"]
[1762624822483,3.76520639,157.35,157.25,8.9048]
[1762624822484,2.84,157.31,157.25,8.9048]
[1762624823490,2.88656468,157.3,157.26,3.22639056]
[1762624826198,0.04656468,157.3,157.26,3.22639056]
[1762624826890,0.04656468,157.3,157.28,5.7238]
[1762624827096,0.04656468,157.3,157.29,3.18]
[1762624829487,0.04656468,157.3,157.26,0.04639056]
[1762624829692,2.88656468,157.3,157.27,3.18]
[1762624830592,0.04656468,157.3,157.27,3.18]
[1762624832297,0.04656468,157.3,157.26,0.04639056]
[1762624832298,0.04656468,157.3,157.29,3.19]
[1762624836095,2.85,157.36,157.31,3.19]
[1762624837105,2.89340484,157.35,157.32,3.23572822]
[1762624837402,2.89340484,157.35,157.32,0.04572822]
[1762624838205,2.89340484,157.35,157.32,3.23572822]
[1762624839796,2.89340484,157.35,157.32,0.04572822]
[1762624840595,2.89340484,157.35,157.32,3.23572822]
[1762624841207,2.89340484,157.35,157.32,0.04572822]
[1762624842111,2.85,157.34,157.32,0.04572822]
[1762624843402,2.85,157.33,157.32,0.04572822]
[1762624843902,2.85,157.33,157.18,33.82]
[1762624843903,2.85,157.32,157.24,3.12]
[1762624844111,2.85,157.31,157.24,3.12]
[1762624844408,2.85,157.34,157.24,3.12]
[1762624844612,2.85,157.34,157.26,3.12]
[1762624845108,0.04552131,157.32,157.29,3.12]
[1762624845297,2.89552131,157.32,157.29,3.12]
[1762624848404,0.04552131,157.32,157.29,3.12]
[1762624849814,2.89552131,157.32,157.28,0.04226554]
[1762624850308,2.85,157.31,157.28,0.04226554]
[1762624850717,2.85,157.31,157.28,3.16226554]
[1762624850909,0.04552131,157.32,157.28,3.16226554]
[1762624852417,0.04552131,157.32,157.31,3.12]
[1762624856727,4.9003979,157.32,157.31,3.12]
[1762624857023,4.90070855,157.32,157.31,3.12]
[1762624857919,0.04552131,157.32,157.31,3.12]
[1762624861418,5.92380018,157.38,157.31,3.12]
[1762624861719,32.73613611,157.4,157.31,3.12]
[1762624861720,4.70757543,157.37,157.31,3.12]
[1762624862029,5.92380018,157.42,157.34,2.99]
[1762624862321,9.37195184,157.41,157.34,2.99]
[1762624862520,0.04450209,157.39,157.36,3.03864379]
[1762624862726,3.71738647,157.48,157.36,2.99]
[1762624862917,7.55217276,157.47,157.36,2.99]
[1762624863121,4.66217276,157.46,157.36,2.99]
[1762624863320,2.89,157.47,157.36,2.99]
[1762624863822,0.0479081,157.43,157.4,3.03603115]
[1762624868126,0.0479081,157.43,157.42,2.99]
[1762624868326,8.6061,157.5,157.42,2.99]
[1762624869330,0.04549049,157.48,157.44,3.03326696]
[1762624872228,2.93549049,157.48,157.44,0.04326696]
[1762624872829,2.89,157.47,157.44,0.04326696]
[1762624873034,6.60738647,157.45,157.38,2.99]
[1762624873336,2.89,157.44,157.38,2.99]
[1762624873937,0.04545908,157.43,157.4,2.99]
[1762624874138,0.04302904,157.43,157.4,2.99]
[1762624875637,2.93302904,157.43,157.4,2.99]
[1762624878339,5.31063716,157.43,157.4,2.99]
[1762624879034,0.04302904,157.43,157.4,2.99]
[1762624880433,0.04302904,157.43,157.4,8.7094]
[1762624880638,0.04302904,157.43,157.41,2.99]
[1762624883037,5.31063716,157.43,157.4,2.99]
[1762624883236,2.37760812,157.41,157.39,3.0324426]
[1762624884733,5.26760812,157.41,157.39,0.0424426]
[1762624884933,2.89,157.4,157.39,0.0424426]
[1762624885342,2.89,157.4,157.33,2.99]
[1762624885546,2.37760812,157.37,157.33,2.99]
[1762624886236,2.37760812,157.37,157.33,8.712]
[1762624886435,2.41947939,157.37,157.34,2.99]
[1762624887334,2.41947939,157.37,157.33,0.04083228]
[1762624887335,5.26760812,157.35,157.33,0.04083228]
[1762624887540,2.89,157.34,157.33,0.04083228]
[1762624888842,2.89,157.34,157.27,2.99]
[1762624889043,2.37760812,157.31,157.27,2.99]
[1762624889847,2.41984086,157.31,157.27,3.03335975]
[1762624891951,0.04223274,157.31,157.29,2.93]
[1762624893048,0.04223274,157.31,157.29,8.6533]
[1762624893249,0.04223274,157.31,157.3,2.93]
[1762624898843,8.38871122,157.4,157.32,2.93]
[1762624899044,2.88,157.4,157.32,2.93]
[1762624899846,0.04562113,157.38,157.34,0.04396309]
[1762624900047,2.92562113,157.38,157.35,2.93]
[1762624904653,0.04562113,157.38,157.35,2.93]
[1762624907155,0.04562113,157.38,157.36,3.15]
[1762624913859,2.93562113,157.38,157.36,3.15]
[1762624914668,0.04562113,157.38,157.36,3.15]
[1762624918171,0.04562113,157.38,157.36,8.8709]
[1762624918370,0.04562113,157.38,157.37,3.15]
[1762624924671,2.93562113,157.38,157.36,3.06]
[1762624924973,0.04562113,157.38,157.36,3.06]
[1762624926869,0.04562113,157.38,157.37,3.06]
[1762624928676,0.04562113,157.38,157.36,3.06]
[1762624938383,2.93562113,157.38,157.34,0.04396309]
[1762624938683,2.93562113,157.38,157.34,3.10396309]
[1762624938981,2.89,157.37,157.34,3.10396309]
[1762624942387,2.89,157.37,157.34,0.04396309]
[1762624942678,2.89,157.37,157.34,3.10396309]
[1762624943183,0.04562113,157.38,157.34,3.10396309]
[1762624944178,2.93562113,157.38,157.34,3.10396309]
[1762624945779,12.17212311,157.37,157.34,3.10396309]
[1762624945980,2.89,157.37,157.34,3.10396309]
[1762624948186,2.93562113,157.38,157.34,3.10396309]
[1762624949786,0.04562113,157.38,157.35,3.06]
[1762624951182,0.04562113,157.38,157.36,3.06]
[1762624952986,2.93562113,157.38,157.36,3.06]
[1762624953186,2.93562113,157.38,157.34,3.17396309]
[1762624953887,2.93562113,157.38,157.34,8.89576309]
[1762624954190,2.93562113,157.38,157.35,3.13]
[1762624957491,2.89,157.36,157.34,0.04396309]
[1762624957694,2.89,157.34,157.26,3.13]
[1762624957894,2.89,157.32,157.26,3.13]
[1762624958098,2.89,157.3,157.26,3.13]
[1762624958588,2.93568453,157.3,157.26,3.17819737]
[1762624959896,2.93568453,157.3,157.26,0.04819737]
[1762624961102,8.65908453,157.3,157.26,0.04819737]
[1762624961395,2.89,157.29,157.26,0.04819737]
[1762624968998,0.04568453,157.3,157.26,3.16819737]
[1762624970000,0.04568453,157.3,157.28,3.12]
[1762624971709,2.93568453,157.3,157.28,3.12]
[1762624971900,2.89,157.36,157.29,3.12]
[1762624972409,2.89,157.35,157.29,3.12]
[1762624973001,2.89,157.33,157.3,0.04440052]
[1762624974903,2.93619472,157.34,157.3,3.16440052]
[1762624975306,0.04619472,157.34,157.3,3.16440052]
[1762624976701,0.04619472,157.34,157.33,3.12]
[1762624977007,2.89,157.41,157.33,3.12]
[1762624977806,0.04661585,157.39,157.35,0.04398556]
[1762624978110,0.04661585,157.39,157.36,8.841]
[1762624978302,2.93661585,157.39,157.35,0.04398556]
[1762624980009,2.89,157.38,157.35,0.04398556]
[1762624980602,2.89,157.37,157.35,0.04398556]
[1762624982905,2.93661585,157.39,157.35,3.13398556]
[1762624984009,8.65681585,157.39,157.35,0.04398556]
[1762624984211,2.89,157.38,157.35,0.04398556]
[1762624984916,2.93661585,157.39,157.35,3.13398556]
[1762624985610,2.93661585,157.39,157.35,0.04398556]
[1762624986211,8.65681585,157.39,157.35,0.04398556]
[1762624986514,2.89,157.38,157.35,0.04398556]
[1762624986909,2.89,157.36,157.29,3.09]
[1762624987919,2.93554148,157.34,157.31,3.1306144]
[1762624988700,2.93554148,157.34,157.31,0.0406144]
[1762624990208,8.65764148,157.34,157.31,0.0406144]
[1762624990513,2.89,157.33,157.31,0.0406144]
[1762624991010,2.93554148,157.34,157.31,3.1306144]
[1762624992611,2.93554148,157.34,157.31,0.0406144]
[1762624995617,0.04554148,157.34,157.31,3.1306144]
[1762624997114,0.04554148,157.34,157.33,3.09]
[1762624997918,2.93554148,157.34,157.31,3.1306144]
[1762624998121,2.93554148,157.34,157.31,0.0406144]
[1762624998319,8.65754148,157.34,157.31,0.0406144]
[1762624998510,2.89,157.33,157.31,0.0406144]
[1762624998910,2.89,157.32,157.31,0.0406144]
[1762624999420,2.89,157.33,157.31,0.0406144]
[1762624999917,8.6124,157.33,157.31,0.0406144]
[1762625000120,2.89,157.32,157.31,0.0406144]
[1762625000910,2.38085805,157.33,157.31,0.0406144]
[1762625001217,2.93554148,157.34,157.31,3.1306144]
[1762625003717,2.93554148,157.34,157.31,8.8536144]
[1762625004024,0.04554148,157.34,157.32,3.09]
[1762625005114,0.04554148,157.34,157.32,8.8126]
[1762625006021,2.93554148,157.34,157.31,0.0406144]
[1762625006521,2.93554148,157.34,157.31,3.1306144]
[1762625007722,0.04554148,157.34,157.32,3.09]
[1762625008313,0.04554148,157.34,157.32,8.8126]
[1762625008514,0.04554148,157.34,157.33,3.09]
[1762625008922,68.41085805,157.42,157.37,3.09]
[1762625009125,9.26168819,157.41,157.37,3.09]
[1762625009424,9.26168819,157.4,157.37,3.09]
[1762625009623,2.89,157.41,157.37,3.09]
[1762625009823,0.03999902,157.41,157.37,3.13638689]
[1762625010021,0.03999902,157.41,157.37,8.85708689]
[1762625010326,0.03999902,157.41,157.38,3.09]
[1762625011115,0.03999902,157.41,157.38,8.8104]
[1762625011420,0.03999902,157.41,157.39,3.15]
[1762625015028,2.92999902,157.41,157.37,3.19638689]
[1762625018827,2.92999902,157.41,157.37,0.04638689]
[1762625019525,2.92999902,157.41,157.37,3.19638689]
[1762625019823,0.03999902,157.41,157.37,3.19638689]
[1762625025932,0.03999902,157.41,157.38,3.06]
[1762625026933,0.03999902,157.41,157.38,8.7804]
[1762625027136,0.03999902,157.41,157.39,3.06]
[1762625028027,0.03999902,157.41,157.4,3.06]
[1762625038244,2.92999902,157.41,157.37,0.04638689]
[1762625038548,5.31085707,157.41,157.37,3.10638689]
[1762625038942,2.89,157.4,157.37,3.10638689]
[1762625039144,0.03999902,157.41,157.37,3.10638689]
[1762625039341,2.38085805,157.4,157.37,3.10638689]
[1762625039546,2.92999902,157.41,157.37,0.04638689]
[1762625039547,2.89,157.39,157.37,0.04638689]
[1762625039739,5.27085805,157.38,157.37,0.04638689]
[1762625040558,2.89,157.37,157.31,3.06]
[1762625040757,2.38085805,157.36,157.31,3.06]
[1762625041153,2.38085805,157.36,157.32,3.06]
[1762625041358,5.27085805,157.38,157.32,3.06]
[1762625041559,2.38085805,157.36,157.33,3.22201152]
[1762625041761,2.38085805,157.36,157.33,3.22485578]
[1762625041762,2.89,157.36,157.33,3.22485578]
[1762625042066,5.27085805,157.36,157.33,3.22485578]
[1762625042763,2.89,157.35,157.33,0.04485578]
[1762625042957,2.38085805,157.36,157.33,3.22485578]
[1762625044360,5.27085805,157.36,157.33,3.22485578]
[1762625044856,0.04515542,157.37,157.33,3.22485578]
[1762625045255,2.93515542,157.37,157.33,3.22485578]
[1762625045855,0.04515542,157.37,157.33,3.22485578]
[1762625046056,2.38085805,157.36,157.33,3.22485578]
[1762625046864,2.93515542,157.37,157.33,3.22485578]
[1762625047065,0.04515542,157.37,157.33,3.22485578]
[1762625048168,5.7191,157.42,157.34,3.18]
[1762625048169,2.38085805,157.42,157.34,3.18]
[1762625048465,2.38085805,157.42,157.37,3.18]
[1762625048659,5.27085805,157.42,157.37,3.18]
[1762625049155,5.27085805,157.4,157.38,0.04181532]
[1762625049354,2.89,157.39,157.38,0.04181532]
[1762625050469,2.89,157.37,157.33,207.08300507]
[1762625050670,2.38085805,157.35,157.33,3.18]
[1762625052372,5.27085805,157.35,157.32,0.0487507]
[1762625052561,2.38085805,157.33,157.32,0.0487507]
[1762625053862,2.38085805,157.33,157.32,3.2287507]
[1762625054067,2.38085805,157.35,157.32,3.2287507]
[1762625055373,2.89,157.34,157.32,0.0487507]
[1762625055681,2.38085805,157.33,157.32,0.0487507]
[1762625055971,2.38085805,157.35,157.32,3.2287507]
[1762625056776,5.27085805,157.35,157.32,3.2287507]
[1762625057176,2.89,157.35,157.32,3.2287507]
[1762625057476,2.93249573,157.36,157.32,3.2287507]
[1762625058375,0.04249573,157.36,157.33,3.18]
[1762625061183,0.04249573,157.36,157.35,3.18]
[1762625064990,2.93249573,157.36,157.33,3.18]
[1762625066683,0.04249573,157.36,157.33,3.18]
[1762625068690,0.04249573,157.36,157.33,8.9022]
[1762625069194,0.04249573,157.36,157.34,3.18]
[1762625074191,0.04249573,157.36,157.35,3.19]
[1762625074499,22.0,157.41,157.35,3.19]
[1762625074796,3.71656798,157.44,157.39,3.19]
[1762625074797,2.88,157.44,157.39,3.19]
[1762625074999,4.50363634,157.46,157.39,3.19]
[1762625075290,2.88,157.47,157.43,3.19]
[1762625075485,2.92293757,157.47,157.43,3.23815993]
[1762625076196,0.04293757,157.47,157.43,3.23815993]
[1762625076391,0.04293757,157.47,157.43,8.95665993]
[1762625076598,0.04293757,157.47,157.44,3.19]
[1762625079999,2.92293757,157.47,157.44,3.19]
[1762625080399,2.92293757,157.47,157.43,0.04815993]
[1762625080797,2.92293757,157.47,157.43,3.23815993]
[1762625082698,2.88,157.46,157.43,0.04815993]
[1762625083991,3.71656798,157.45,157.43,0.04815993]
[1762625084196,2.89,157.43,157.37,8.6706]
[1762625084399,2.89,157.43,157.38,2.95]
[1762625085300,0.04877004,157.42,157.4,2.95]
[1762625089802,2.89,157.41,157.39,0.04437545]
[1762625091106,8.6094,157.41,157.39,0.04437545]
[1762625095809,2.89,157.41,157.39,0.04437545]
[1762625096308,3.76533802,157.42,157.39,2.99437545]
[1762625096710,6.65533802,157.42,157.39,2.99437545]
[1762625097509,0.04877004,157.42,157.39,2.99437545]
[1762625098304,2.93877004,157.42,157.39,2.99437545]
[1762625098501,2.93877004,157.42,157.39,0.04437545]
[1762625099207,2.89,157.41,157.39,0.04437545]
[1762625099810,2.89,157.4,157.39,0.04437545]
[1762625101217,2.89,157.38,157.33,2.95]
[1762625101515,2.88,157.37,157.3,3.12]
[1762625101717,8.6009,157.37,157.31,8.8429]
[1762625102220,2.92850959,157.36,157.32,3.16307197]
[1762625105226,0.04850959,157.36,157.33,3.12]
[1762625106314,0.04850959,157.36,157.32,0.04307197]
[1762625106315,2.92850959,157.36,157.32,0.04307197]
[1762625106927,2.88,157.34,157.32,0.04307197]
[1762625111621,3.71656798,157.35,157.32,3.16307197]
[1762625111922,3.71656798,157.35,157.32,0.04307197]
[1762625111923,2.88,157.34,157.32,0.04307197]
[1762625114327,6.59656798,157.35,157.32,3.16307197]
[1762625115526,2.88,157.34,157.32,0.04307197]
[1762625115726,6.59656798,157.35,157.32,3.16307197]
[1762625116626,2.88,157.34,157.32,3.16307197]
[1762625116831,2.88,157.34,157.32,0.04307197]
[1762625118735,0.04850959,157.36,157.32,3.16307197]
[1762625118933,2.92850959,157.36,157.32,3.16307197]
[1762625120431,0.04850959,157.36,157.32,3.16307197]
[1762625120929,2.92850959,157.36,157.32,3.16307197]
[1762625121432,2.92850959,157.36,157.33,3.12]
[1762625122421,5.30821017,157.36,157.33,3.12]
[1762625126826,2.88,157.35,157.32,0.04307197]
[1762625127129,2.88,157.35,157.32,3.16307197]
[1762625134322,2.42821017,157.36,157.32,3.16307197]
[1762625134935,5.31821017,157.36,157.32,3.16307197]
[1762625136435,5.31821017,157.36,157.33,3.12]
[1762625137638,2.89,157.35,157.33,3.12]
[1762625137933,2.89,157.35,157.32,5.76547197]
[1762625138136,5.26970058,157.34,157.32,0.04307197]
[1762625138639,5.26970058,157.34,157.32,3.16307197]
[1762625141740,2.37970058,157.34,157.32,3.16307197]
[1762625142738,2.42821017,157.36,157.33,3.12]
[1762625143034,5.31821017,157.36,157.33,3.12]
[1762625143234,7.70670254,157.35,157.33,3.12]
[1762625143434,2.89,157.35,157.33,3.12]
[1762625143641,2.89,157.35,157.32,5.76557197]
[1762625143832,2.42821017,157.36,157.32,0.04307197]
[1762625143833,2.89,157.33,157.32,0.04307197]
[1762625144036,7.70713246,157.33,157.32,0.04307197]
[1762625150644,12.18026738,157.33,157.32,0.04307197]
[1762625151446,2.89,157.3,157.26,3.13]
[1762625151646,2.89,157.28,157.21,3.13]
[1762625152248,2.89,157.26,157.24,3.13]
[1762625153048,2.42538434,157.27,157.24,3.13]
[1762625155254,2.89,157.26,157.24,3.13]
[1762625156154,2.42538434,157.27,157.24,3.13]
[1762625156355,5.31538434,157.27,157.24,3.13]
[1762625158951,2.42538434,157.27,157.25,3.13]
[1762625163255,2.42538434,157.27,157.25,8.855]
[1762625163457,0.04568376,157.27,157.25,8.855]
[1762625168870,0.04568376,157.27,157.26,2.99]
[1762625169062,2.89,157.26,157.24,2.99]
[1762625169762,2.89,157.26,157.24,8.7154]
[1762625171961,2.89,157.26,157.24,2.99]
[1762625173369,2.42538434,157.27,157.24,2.99]
[1762625173764,2.42538434,157.27,157.25,2.99]
[1762625180074,5.31538434,157.27,157.25,2.99]
[1762625184478,0.04568376,157.27,157.25,2.99]
[1762625186180,0.04568376,157.27,157.26,2.99]
[1762625187278,6.61165891,157.32,157.28,2.99]
[1762625187473,2.89,157.31,157.28,2.99]
[1762625188284,0.04862231,157.31,157.28,8.75691851]
[1762625188578,0.04862231,157.31,157.29,2.99]
[1762625189583,0.04862231,157.31,157.3,2.99]
[1762625190283,4.79161017,157.35,157.33,2.99]
[1762625190478,2.89,157.38,157.33,2.99]
[1762625190679,9.29765796,157.37,157.33,2.99]
[1762625190888,4.79120209,157.36,157.33,2.99]
[1762625191183,2.89,157.38,157.33,2.99]
[1762625191384,4.83407278,157.37,157.34,3.24362512]
[1762625191585,2.92489565,157.37,157.34,3.24362512]
[1762625192575,2.92489565,157.37,157.34,0.04362512]
[1762625192576,6.64655456,157.37,157.34,0.04362512]
[1762625192786,2.88,157.35,157.34,0.04362512]
[1762625192983,12.17247442,157.35,157.34,0.04362512]
[1762625194482,12.17247442,157.35,157.3,3.2]
[1762625194483,2.88,157.34,157.3,3.2]
[1762625195594,2.92029701,157.34,157.3,3.24213326]
[1762625201388,2.88,157.33,157.3,0.04213326]
[1762625202196,8.6023,157.33,157.3,0.04213326]
[1762625202393,2.88,157.32,157.3,0.04213326]
[1762625204095,2.88,157.32,157.3,3.03213326]
[1762625207992,2.88,157.32,157.3,0.04213326]
[1762625216003,2.93029701,157.34,157.3,3.21213326]
[1762625216207,4.76683167,157.33,157.3,3.21213326]
[1762625216505,2.93029701,157.34,157.3,3.21213326]
[1762625216706,4.76679834,157.33,157.3,3.21213326]
[1762625217006,2.93029701,157.34,157.31,3.17]
[1762625217299,4.76679834,157.33,157.31,3.17]
[1762625217504,2.93029701,157.34,157.31,3.17]
[1762625217809,7.6572755,157.33,157.31,3.17]
[1762625218008,2.89,157.33,157.31,3.17]
[1762625221210,2.89,157.33,157.3,0.04213326]
[1762625221406,2.89,157.31,157.3,0.04213326]
[1762625221706,15.90709678,157.31,157.3,0.04213326]
[1762625223106,2.89,157.29,157.26,3.24]
[1762625223313,2.89,157.27,157.24,3.24]
[1762625224199,0.04845861,157.27,157.24,3.28009571]
[1762625224412,0.04845861,157.27,157.25,3.24]
[1762625226012,0.04845861,157.27,157.25,8.965]
[1762625226205,0.04845861,157.27,157.26,3.24]
[1762625226601,2.93845861,157.27,157.24,3.28009571]
[1762625229016,0.04845861,157.27,157.24,3.28009571]
[1762625229208,2.93845861,157.27,157.24,3.28009571]
[1762625229408,0.04845861,157.27,157.24,9.00549571]
[1762625229610,0.04845861,157.27,157.25,3.24]
[1762625230115,2.93845861,157.27,157.25,3.24]
[1762625230317,0.04845861,157.27,157.25,8.965]
[1762625230514,0.04845861,157.27,157.26,3.24]
[1762625232013,0.04845861,157.27,157.25,5.725]
[1762625232318,0.04845861,157.27,157.26,3.24]
[1762625235720,0.04845861,157.27,157.25,8.965]
[1762625236220,2.93845861,157.27,157.25,3.24]
[1762625237124,2.93845861,157.27,157.24,3.28009571]
[1762625242532,0.04845861,157.27,157.25,3.24]
[1762625244134,2.93845861,157.27,157.24,0.04009571]
[1762625244436,2.93845861,157.27,157.24,3.28009571]
[1762625245636,2.93845861,157.27,157.19,3.24]
[1762625245833,2.89,157.24,157.19,3.24]
[1762625246025,7.70001224,157.23,157.19,3.24]
[1762625246237,2.89,157.23,157.19,3.24]
[1762625246436,5.2741335,157.22,157.19,3.24]
[1762625246944,5.31921052,157.22,157.19,3.28597811]
[1762625247837,0.04507702,157.22,157.19,3.28597811]
[1762625248227,0.04507702,157.22,157.19,9.01317811]
[1762625248432,0.04507702,157.22,157.2,3.24]
[1762625250141,2.93507702,157.22,157.2,3.24]
[1762625252240,0.04507702,157.22,157.2,3.24]
[1762625254447,2.93507702,157.22,157.19,3.16597811]
[1762625254642,2.3841335,157.21,157.19,3.16597811]
[1762625255338,2.89,157.2,157.19,0.04597811]
[1762625255739,2.3841335,157.21,157.19,3.16597811]
[1762625257045,0.04507702,157.22,157.19,3.16597811]
[1762625257241,2.93507702,157.22,157.19,3.16597811]
[1762625270855,0.04507702,157.22,157.19,3.16597811]
[1762625271847,0.04507702,157.22,157.2,3.1]
[1762625276857,2.93507702,157.22,157.2,3.1]
[1762625278955,2.93507702,157.22,157.2,8.827]
[1762625280260,2.93507702,157.22,157.2,3.1]
[1762625283254,8.3174213,157.28,157.2,3.1]
[1762625283460,9.50695367,157.27,157.2,3.1]
[1762625283757,9.50695367,157.26,157.2,3.1]
[1762625283961,4.88033488,157.25,157.2,3.1]
[1762625284163,2.3841335,157.28,157.2,3.1]
[1762625284359,0.04678548,157.26,157.25,3.05]
[1762625284559,2.3841335,157.3,157.25,3.05]
[1762625284864,0.04354666,157.27,157.25,3.05]
[1762625286159,0.04354666,157.27,157.26,8.7748]
[1762625289962,5.9332878,157.33,157.3,3.05]
[1762625290167,5.3241335,157.36,157.3,3.05]
[1762625290370,5.3241335,157.34,157.3,3.05]
[1762625290567,9.4703237,157.33,157.3,3.05]
[1762625290763,5.3241335,157.34,157.3,3.05]
[1762625290963,4.85028798,157.33,157.3,3.09137884]
[1762625291264,5.36878916,157.34,157.3,3.09137884]
[1762625291465,4.84718058,157.33,157.3,3.09137884]
[1762625291767,5.36878916,157.34,157.3,3.09137884]
[1762625291967,4.84718007,157.33,157.3,3.09137884]
[1762625292261,0.04465566,157.34,157.31,3.05]
[1762625293059,5.3241335,157.38,157.31,3.05]
[1762625293060,2.3841335,157.4,157.33,3.05]
[1762625293266,2.94,157.41,157.33,3.05]
[1762625293954,2.94,157.41,157.37,3.05]
[1762625294157,2.3841335,157.4,157.37,3.09228179]
[1762625294863,0.04642427,157.41,157.38,3.05]
[1762625295469,0.04642427,157.41,157.39,5.7199]
[1762625295656,0.04642427,157.41,157.4,3.05]
[1762625297273,2.3841335,157.47,157.42,3.05]
[1762625298375,2.3841335,157.45,157.43,0.04548505]
[1762625298577,2.3841335,157.45,157.38,3.05]
[1762625298578,2.94,157.44,157.38,3.05]
[1762625298759,2.3841335,157.4,157.38,3.05]
[1762625300464,5.3241335,157.4,157.38,3.05]
[1762625300666,5.3241335,157.4,157.37,3.09263518]
[1762625302075,2.3841335,157.4,157.37,3.09263518]
[1762625302879,5.3241335,157.4,157.37,3.09263518]
[1762625303868,5.3241335,157.38,157.37,0.04263518]
[1762625308482,2.94,157.38,157.37,0.04263518]
[1762625313478,2.92,157.36,157.31,3.14]
[1762625313671,2.92,157.35,157.29,8.8635]
[1762625313874,2.92,157.35,157.25,3.14]
[1762625314081,3.71819822,157.36,157.25,3.14]
[1762625314082,2.92,157.32,157.25,3.14]
[1762625314384,2.92,157.32,157.26,3.14]
[1762625314585,2.9602452,157.31,157.27,3.18295787]
[1762625316087,2.9602452,157.31,157.27,8.90725787]
[1762625318385,2.9602452,157.31,157.27,3.18295787]
[1762625319983,0.0402452,157.31,157.27,3.18295787]
[1762625320190,0.0402452,157.31,157.27,8.90725787]
[1762625320392,2.9602452,157.31,157.28,3.14]
[1762625325190,2.9602452,157.31,157.27,5.76725787]
[1762625325494,2.9602452,157.31,157.27,3.25295787]
[1762625326697,2.9602452,157.31,157.28,3.21]
[1762625333602,0.0402452,157.31,157.28,3.21]
[1762625335200,0.0402452,157.31,157.3,3.21]
[1762625341200,2.93,157.37,157.32,3.21]
[1762625342201,2.93,157.37,157.31,5.7227]
[1762625342202,2.97213191,157.36,157.33,3.02322066]
[1762625347201,8.69343191,157.36,157.33,0.04322066]
[1762625347407,2.93,157.33,157.27,2.98]
[1762625347709,2.93,157.31,157.27,2.98]
[1762625348197,2.93,157.3,157.27,2.98]
[1762625348407,2.97651549,157.3,157.27,3.02404071]
[1762625350905,0.04651549,157.3,157.27,3.02404071]
[1762625351609,2.93,157.38,157.29,2.98]
[1762625351805,9.5673282,157.37,157.29,2.98]
[1762625352008,9.5673282,157.36,157.29,2.98]
[1762625352209,2.93,157.38,157.29,2.98]
[1762625352508,7.80513087,157.37,157.29,2.98]
[1762625352704,3.0247284,157.35,157.32,0.04842706]
[1762625352906,12.54805535,157.34,157.32,0.04842706]
[1762625353102,2.98,157.34,157.32,0.04842706]
[1762625357305,4.74699551,157.33,157.32,0.04842706]
[1762625358209,9.57667724,157.33,157.32,0.04842706]
[1762625359420,4.74699551,157.33,157.32,0.04842706]
[1762625359618,9.57743706,157.33,157.32,0.04842706]
[1762625359914,4.74699551,157.33,157.32,0.04842706]
[1762625362014,4.74699551,157.33,157.32,3.02842706]
[1762625362219,2.98,157.34,157.32,3.02842706]
[1762625364319,2.98,157.34,157.32,0.04842706]
[1762625364320,4.74795446,157.33,157.32,0.04842706]
[1762625364618,2.98,157.34,157.32,0.04842706]
[1762625364819,2.98,157.34,157.32,3.02842706]
[1762625366528,3.0247284,157.35,157.32,3.02842706]
[1762625368434,0.0447284,157.35,157.32,8.75102706]
[1762625368726,0.0447284,157.35,157.33,2.98]
[1762625369232,0.0447284,157.35,157.34,2.98]
[1762625371430,3.0247284,157.35,157.32,3.05842706]
[1762625381145,3.0247284,157.35,157.32,8.78102706]
[1762625381439,3.0247284,157.35,157.33,3.01]
[1762625383243,0.0447284,157.35,157.33,3.01]
[1762625386643,3.0247284,157.35,157.33,3.01]
[1762625387846,0.0447284,157.35,157.33,3.01]
[1762625390249,0.0447284,157.35,157.33,8.7322]
[1762625390446,0.0447284,157.35,157.34,2.94]
[1762625400956,0.00034572,157.35,157.34,2.94]
[1762625401152,22.0,157.4,157.36,2.94]
[1762625401358,4.82054455,157.39,157.36,2.94]
[1762625401656,5.3586785,157.41,157.36,2.94]
[1762625401852,9.44967425,157.4,157.36,2.94]